Department Family,Entity,Date Paid,Expense Type,Expense Area,Supplier,Transaction Number,Amount (�),Supplier VAT Registration Number
BEIS,Met Office,2021-04-06,11 SERVICES,PROGRAMMES,ALTO AEROSPACE LIMITED,454456,-1742.86,GB847176988
BEIS,Met Office,2021-04-06,06 ACCOMMODATION,CHIEF FINANCIAL OFFICER,BIDVEST NOONAN UK LTD,453052,871.43,GB847176988
BEIS,Met Office,2021-04-06,06 ACCOMMODATION,CHIEF FINANCIAL OFFICER,BIDVEST NOONAN UK LTD,453059,387.16,GB847176988
BEIS,Met Office,2021-04-06,06 ACCOMMODATION,CHIEF FINANCIAL OFFICER,BIDVEST NOONAN UK LTD,453062,871.43,GB847176988
BEIS,Met Office,2021-04-06,06 ACCOMMODATION,CHIEF FINANCIAL OFFICER,BIDVEST NOONAN UK LTD,454222,387.16,GB847176988
BEIS,Met Office,2021-04-06,06 ACCOMMODATION,CHIEF FINANCIAL OFFICER,BIDVEST NOONAN UK LTD,454223,12495.45,734245248
BEIS,Met Office,2021-04-06,08 SOFTWARE LICENCES,TECHNOLOGY AND CIO,BOXXE,454416,15.9,864497378
BEIS,Met Office,2021-04-06,13 MISCELLANEOUS,CHIEF FINANCIAL OFFICER,CARDIFF EXECUTIVE CENTRE LTD,454429,290,783848277
BEIS,Met Office,2021-04-06,03 STAFF COSTS T&S,SERVICES,CHARLIE'S TRAVEL LTD,454472,709,783848277
BEIS,Met Office,2021-04-06,03 STAFF COSTS T&S,SERVICES,CHARLIE'S TRAVEL LTD,454472,844,783848277
BEIS,Met Office,2021-04-06,03 STAFF COSTS T&S,SERVICES,CHARLIE'S TRAVEL LTD,454472,286875,490334648
BEIS,Met Office,2021-04-06,11 SERVICES,TECHNOLOGY AND CIO,COMPUTACENTER (UK) LTD,454423,13072.76,490334648
BEIS,Met Office,2021-04-06,08 SOFTWARE LICENCES,TECHNOLOGY AND CIO,COMPUTACENTER (UK) LTD,454428,337.5,243759288
BEIS,Met Office,2021-04-06,05 CONSULTANTS,MARKETS,EARTH WIND FIRE AND WATER,454448,18.2,676668178
BEIS,Met Office,2021-04-06,13 MISCELLANEOUS,CHIEF FINANCIAL OFFICER,EAST ANGLIAN WATER COOLER CO,454450,3243.62,823820344
BEIS,Met Office,2021-04-06,11 SERVICES,PROGRAMMES,GAMMA TELECOM LTD,451264,3238.23,823820344
BEIS,Met Office,2021-04-06,11 SERVICES,PROGRAMMES,GAMMA TELECOM LTD,452390,87800,635878884
BEIS,Met Office,2021-04-06,11 SERVICES,TECHNOLOGY AND CIO,GARTNER UK LTD,454427,10493,888 8508 47
BEIS,Met Office,2021-04-06,06 ACCOMMODATION,CHIEF FINANCIAL OFFICER,GOVERNMENT PROPERTY AGENCY,454444,-100,238839422
BEIS,Met Office,2021-04-06,11 SERVICES,PEOPLE,HAWK INCENTIVES LTD,454071,-50,238839422
BEIS,Met Office,2021-04-06,11 SERVICES,PEOPLE,HAWK INCENTIVES LTD,454072,-100,238839422
BEIS,Met Office,2021-04-06,11 SERVICES,PEOPLE,HAWK INCENTIVES LTD,454073,-75,238839422
BEIS,Met Office,2021-04-06,11 SERVICES,PEOPLE,HAWK INCENTIVES LTD,454074,-10,238839422
BEIS,Met Office,2021-04-06,11 SERVICES,PEOPLE,HAWK INCENTIVES LTD,454075,31106.25,238839422
BEIS,Met Office,2021-04-06,11 SERVICES,PEOPLE,HAWK INCENTIVES LTD,454342,558.7,773695871
BEIS,Met Office,2021-04-06,04 CONTRACTORS,TECHNOLOGY AND CIO,HAYS SPECIALIST RECRUITMENT LTD,454399,536.05,773695871
BEIS,Met Office,2021-04-06,04 CONTRACTORS,TECHNOLOGY AND CIO,HAYS SPECIALIST RECRUITMENT LTD,454400,366.15,773695871
BEIS,Met Office,2021-04-06,04 CONTRACTORS,PEOPLE,HAYS SPECIALIST RECRUITMENT LTD,454401,634.67,773695871
BEIS,Met Office,2021-04-06,04 CONTRACTORS,PEOPLE,HAYS SPECIALIST RECRUITMENT LTD,454402,488.2,773695871
BEIS,Met Office,2021-04-06,04 CONTRACTORS,PEOPLE,HAYS SPECIALIST RECRUITMENT LTD,454403,183.08,773695871
BEIS,Met Office,2021-04-06,04 CONTRACTORS,MARKETS,HAYS SPECIALIST RECRUITMENT LTD,454404,23125,102099056
BEIS,Met Office,2021-04-06,11 SERVICES,PEOPLE,HOPSCOTCH CONSULTING,454238,69254.06,570039752
BEIS,Met Office,2021-04-06,11 SERVICES,PROGRAMMES,Hr Wallingford Ltd,454242,674.88,130 1297 14
BEIS,Met Office,2021-04-06,04 CONTRACTORS,MARKETS,JOBSEEKERS RECRUITMENT SERVICES LTD,454346,676.36,130 1297 14
BEIS,Met Office,2021-04-06,04 CONTRACTORS,PEOPLE,JOBSEEKERS RECRUITMENT SERVICES LTD,454347,674.88,130 1297 14
BEIS,Met Office,2021-04-06,04 CONTRACTORS,OFFICE OF THE CEO,JOBSEEKERS RECRUITMENT SERVICES LTD,454348,674.88,130 1297 14
BEIS,Met Office,2021-04-06,04 CONTRACTORS,MARKETS,JOBSEEKERS RECRUITMENT SERVICES LTD,454349,676.36,130 1297 14
BEIS,Met Office,2021-04-06,04 CONTRACTORS,PEOPLE,JOBSEEKERS RECRUITMENT SERVICES LTD,454350,676.36,130 1297 14
BEIS,Met Office,2021-04-06,04 CONTRACTORS,CHIEF FINANCIAL OFFICER,JOBSEEKERS RECRUITMENT SERVICES LTD,454351,411.3,130 1297 14
BEIS,Met Office,2021-04-06,04 CONTRACTORS,CHIEF FINANCIAL OFFICER,JOBSEEKERS RECRUITMENT SERVICES LTD,454352,1076.56,733546040
BEIS,Met Office,2021-04-06,03 STAFF COSTS T&S,CHIEF FINANCIAL OFFICER,LEASEDRIVE RENTAL MANAGEMENT LTD,454407,27002.56,GB 338 5487 64
BEIS,Met Office,2021-04-06,06 ACCOMMODATION,CHIEF FINANCIAL OFFICER,National Oceanography Centre,454446,2028,440379456004
BEIS,Met Office,2021-04-06,11 SERVICES,MARKETS,NATS (EN ROUTE) PLC,454425,530,737592693
BEIS,Met Office,2021-04-06,07 EQUIPMENT,SERVICES,OTT HYDROMET,454169,190,737592693
BEIS,Met Office,2021-04-06,07 EQUIPMENT,SERVICES,OTT HYDROMET,454169,2310,737592693
BEIS,Met Office,2021-04-06,07 EQUIPMENT,SERVICES,OTT HYDROMET,454169,7051.25,576118722
BEIS,Met Office,2021-04-06,04 CONTRACTORS,TECHNOLOGY AND CIO,OUTSOURCE UK LIMITED,454436,9900,719067718
BEIS,Met Office,2021-04-06,04 CONTRACTORS,PROGRAMMES,QUALSERV CONSULTING LTD,454432,8736.42,719067718
BEIS,Met Office,2021-04-06,04 CONTRACTORS,PEOPLE,QUALSERV CONSULTING LTD,454433,9750,719067718
BEIS,Met Office,2021-04-06,04 CONTRACTORS,SERVICES,QUALSERV CONSULTING LTD,454434,2500,719067718
BEIS,Met Office,2021-04-06,04 CONTRACTORS,SERVICES,QUALSERV CONSULTING LTD,454435,18.7,724295039
BEIS,Met Office,2021-04-06,03 STAFF COSTS T&S,CHIEF FINANCIAL OFFICER,RAINBOW CITY TAXIS,454406,16500,924964394
BEIS,Met Office,2021-04-06,04 CONTRACTORS,PROGRAMMES,ROWE IT LTD,454353,99068.75,924964394
BEIS,Met Office,2021-04-06,11 SERVICES,PROGRAMMES,ROWE IT LTD,454443,53833.75,924964394
BEIS,Met Office,2021-04-06,11 SERVICES,PROGRAMMES,ROWE IT LTD,454445,8127.35,GB 942 5301 43
BEIS,Met Office,2021-04-06,08 SOFTWARE LICENCES,TECHNOLOGY AND CIO,SOFTWAREONE,454418,73.17,975081008
BEIS,Met Office,2021-04-06,06 ACCOMMODATION,CHIEF FINANCIAL OFFICER,ST MODWEN VENTURES LTD,454430,1658.4,172647982
BEIS,Met Office,2021-04-06,11 SERVICES,TECHNOLOGY AND CIO,UKCLOUD LTD,454466,26062.21,524371168
BEIS,Met Office,2021-04-06,11 SERVICES,PROGRAMMES,University College London,454431,291748,613451470
BEIS,Met Office,2021-04-06,11 SERVICES,PROGRAMMES,University Of Leeds,453252,81464,613451470
BEIS,Met Office,2021-04-06,11 SERVICES,PROGRAMMES,University Of Leeds,453255,32320,613451470
BEIS,Met Office,2021-04-06,11 SERVICES,PROGRAMMES,University Of Leeds,453653,-54785.16,613451470
BEIS,Met Office,2021-04-06,13 MISCELLANEOUS,SCIENCE,University Of Leeds,454408,53471.4,613451470
BEIS,Met Office,2021-04-06,13 MISCELLANEOUS,SCIENCE,University Of Leeds,454409,66936,200012659
BEIS,Met Office,2021-04-06,11 SERVICES,PROGRAMMES,University Of Reading,453572,15774,200012659
BEIS,Met Office,2021-04-06,11 SERVICES,PROGRAMMES,University Of Reading,453573,8748.5,876328977
BEIS,Met Office,2021-04-06,04 CONTRACTORS,PROGRAMMES,WA CONSULTANTS LTD,454254,10866,876328977
BEIS,Met Office,2021-04-06,04 CONTRACTORS,PROGRAMMES,WA CONSULTANTS LTD,454257,17203.31,876328977
BEIS,Met Office,2021-04-06,04 CONTRACTORS,CHIEF FINANCIAL OFFICER,WA CONSULTANTS LTD,454258,13962.4,876328977
BEIS,Met Office,2021-04-06,04 CONTRACTORS,TECHNOLOGY AND CIO,WA CONSULTANTS LTD,454357,11400,876328977
BEIS,Met Office,2021-04-06,04 CONTRACTORS,TECHNOLOGY AND CIO,WA CONSULTANTS LTD,454358,50,887469254
BEIS,Met Office,2021-04-06,11 SERVICES,PROGRAMMES,WILD FRONTIER ECOLOGY LTD,454360,1800,673900720
BEIS,Met Office,2021-04-06,10 EQUIPMENT MAINTENANCE,SERVICES,YOUNG CALIBRATION LIMITED,454405,15,673900720
BEIS,Met Office,2021-04-06,11 SERVICES,SERVICES,YOUNG CALIBRATION LIMITED,454405,267.44,768489458
BEIS,Met Office,2021-04-07,03 STAFF COSTS T&S,SERVICES,CARTUS FINANCING LTD,454521,-267.44,768489458
BEIS,Met Office,2021-04-07,03 STAFF COSTS T&S,SERVICES,CARTUS FINANCING LTD,454618,63.13,FR95338034390
BEIS,Met Office,2021-04-07,11 SERVICES,SERVICES,COLLECTE LOCALISATION SATELLITES (C.L.S.),22356,6386.84,FR95338034390
BEIS,Met Office,2021-04-07,11 SERVICES,SERVICES,COLLECTE LOCALISATION SATELLITES (C.L.S.),22357,7468.7,FR95338034390
BEIS,Met Office,2021-04-07,11 SERVICES,SERVICES,COLLECTE LOCALISATION SATELLITES (C.L.S.),22358,82.66,10156145J
BEIS,Met Office,2021-04-07,13 MISCELLANEOUS,CHIEF FINANCIAL OFFICER,DEMSTAR BUSINESS SOLUTIONS LTD,22342,11998.03,NOTVATREG
BEIS,Met Office,2021-04-07,REVENUE,SCIENCE,ECMWF,22359,2500,DE236332710
BEIS,Met Office,2021-04-07,08 SOFTWARE LICENCES,TECHNOLOGY AND CIO,FOXIT EUROPE GMBH,453594,3936.94,SK2020241883
BEIS,Met Office,2021-04-07,11 SERVICES,PROGRAMMES,"IBL SOFTWARE ENGINEERING, SPOL S.R.O.",453621,7494.31,SK2020241883
BEIS,Met Office,2021-04-07,08 SOFTWARE LICENCES,TECHNOLOGY AND CIO,"IBL SOFTWARE ENGINEERING, SPOL S.R.O.",454284,30405.08,SK2020241883
BEIS,Met Office,2021-04-07,08 SOFTWARE LICENCES,TECHNOLOGY AND CIO,"IBL SOFTWARE ENGINEERING, SPOL S.R.O.",454284,2770.04,EU826020045
BEIS,Met Office,2021-04-07,11 SERVICES,PEOPLE,PLURALSIGHT,453615,19803,112591322
BEIS,Met Office,2021-04-07,11 SERVICES,PROGRAMMES,REDACTED PERSONAL DATA,20503,11497.79,280255
BEIS,Met Office,2021-04-07,11 SERVICES,SCIENCE,UNIVERSITATBERN,22360,565,166969348
BEIS,Met Office,2021-04-08,06 ACCOMMODATION,CHIEF FINANCIAL OFFICER,ABOVE THE REST COMMERCIAL CLEANING LTD,454556,1558.46,747880191
BEIS,Met Office,2021-04-08,11 SERVICES,CHIEF FINANCIAL OFFICER,ALLSTAR BUSINESS SOLUTIONS LTD,454519,871.43,GB847176988
BEIS,Met Office,2021-04-08,06 ACCOMMODATION,CHIEF FINANCIAL OFFICER,BIDVEST NOONAN UK LTD,443409,11905.58,226556555
BEIS,Met Office,2021-04-08,11 SERVICES,SERVICES,Boc Ltd,454471,37156.5,GB184088778
BEIS,Met Office,2021-04-08,11 SERVICES,PEOPLE,BROADBEAN TECHNOLOGY LTD,454475,1319.03,523797128
BEIS,Met Office,2021-04-08,13 MISCELLANEOUS,CHIEF FINANCIAL OFFICER,CANON UK LTD,454538,543.47,523797128
BEIS,Met Office,2021-04-08,13 MISCELLANEOUS,CHIEF FINANCIAL OFFICER,CANON UK LTD,454539,5.95,523797128
BEIS,Met Office,2021-04-08,13 MISCELLANEOUS,CHIEF FINANCIAL OFFICER,CANON UK LTD,454539,13.88,523797128
BEIS,Met Office,2021-04-08,13 MISCELLANEOUS,CHIEF FINANCIAL OFFICER,CANON UK LTD,454539,8.71,523797128
BEIS,Met Office,2021-04-08,13 MISCELLANEOUS,CHIEF FINANCIAL OFFICER,CANON UK LTD,454539,0.1,523797128
BEIS,Met Office,2021-04-08,13 MISCELLANEOUS,CHIEF FINANCIAL OFFICER,CANON UK LTD,454539,3.65,523797128
BEIS,Met Office,2021-04-08,13 MISCELLANEOUS,CHIEF FINANCIAL OFFICER,CANON UK LTD,454539,12.46,523797128
BEIS,Met Office,2021-04-08,13 MISCELLANEOUS,CHIEF FINANCIAL OFFICER,CANON UK LTD,454539,2470,864497378
BEIS,Met Office,2021-04-08,06 ACCOMMODATION,CHIEF FINANCIAL OFFICER,CARDIFF EXECUTIVE CENTRE LTD,454426,1301.87,978169262
BEIS,Met Office,2021-04-08,11 SERVICES,PEOPLE,CATALYST IT,454516,514.42,215557314
BEIS,Met Office,2021-04-08,03 STAFF COSTS T&S,CHIEF FINANCIAL OFFICER,ENTERPRISE RENT A CAR UK LTD,454532,282.18,215557314
BEIS,Met Office,2021-04-08,03 STAFF COSTS T&S,CHIEF FINANCIAL OFFICER,ENTERPRISE RENT A CAR UK LTD,454533,1914,GB798572653
BEIS,Met Office,2021-04-08,11 SERVICES,CHIEF FINANCIAL OFFICER,EXPONENTIAL-E,454517,3453.68,GB798572653
BEIS,Met Office,2021-04-08,11 SERVICES,CHIEF FINANCIAL OFFICER,EXPONENTIAL-E,454518,994.57,GB798572653
BEIS,Met Office,2021-04-08,11 SERVICES,CHIEF FINANCIAL OFFICER,EXPONENTIAL-E,454518,1250,855910212
BEIS,Met Office,2021-04-08,11 SERVICES,PEOPLE,FRANCIS CLARK LLP,453942,1700,861294416
BEIS,Met Office,2021-04-08,STOCK,SERVICES,Goldisc Limited,454422,1700,861294416
BEIS,Met Office,2021-04-08,STOCK,SERVICES,Goldisc Limited,454422,5869.5,238839422
BEIS,Met Office,2021-04-08,11 SERVICES,PEOPLE,HAWK INCENTIVES LTD,453740,8310.75,238839422
BEIS,Met Office,2021-04-08,11 SERVICES,PEOPLE,HAWK INCENTIVES LTD,453987,-30,238839422
BEIS,Met Office,2021-04-08,11 SERVICES,PEOPLE,HAWK INCENTIVES LTD,454070,21384,277 2052 03
BEIS,Met Office,2021-04-08,08 SOFTWARE LICENCES,PROGRAMMES,HUT 6 SECURITY LIMITED,454467,8613.7,107328000
BEIS,Met Office,2021-04-08,08 SOFTWARE LICENCES,TECHNOLOGY AND CIO,Ibm United Kingdom Ltd,454526,170.82,663755506
BEIS,Met Office,2021-04-08,06 ACCOMMODATION,CHIEF FINANCIAL OFFICER,MORAY COUNCIL,454457,200,N/A
BEIS,Met Office,2021-04-08,06 ACCOMMODATION,CHIEF FINANCIAL OFFICER,REDACTED PERSONAL DATA,454468,456,143043312
BEIS,Met Office,2021-04-08,11 SERVICES,PEOPLE,REDACTED PERSONAL DATA,454474,140.05,581705924
BEIS,Met Office,2021-04-08,13 MISCELLANEOUS,CHIEF FINANCIAL OFFICER,SELECTA UK LTD,454454,472.15,978367258
BEIS,Met Office,2021-04-08,06 ACCOMMODATION,CHIEF FINANCIAL OFFICER,SHETLAND GRASSCUTTING,454455,2256.3,978367258
BEIS,Met Office,2021-04-08,06 ACCOMMODATION,CHIEF FINANCIAL OFFICER,SHETLAND GRASSCUTTING,454455,207.15,982055803
BEIS,Met Office,2021-04-08,06 ACCOMMODATION,CHIEF FINANCIAL OFFICER,TENNIE FACILITIES PROPERTY MANAGEMENT LTD,454529,1000,524371168
BEIS,Met Office,2021-04-08,13 MISCELLANEOUS,SCIENCE,University College London,454520,200388,613451470
BEIS,Met Office,2021-04-08,11 SERVICES,PROGRAMMES,University Of Leeds,453675,37055.2,168287859
BEIS,Met Office,2021-04-08,11 SERVICES,PROGRAMMES,University of Plymouth,454417,17941.15,316677090
BEIS,Met Office,2021-04-08,FIXTURE & FITTINGS,CHIEF FINANCIAL OFFICER,XUPER,452972,-412.5,316677090
BEIS,Met Office,2021-04-08,FIXTURE & FITTINGS,CHIEF FINANCIAL OFFICER,XUPER,454452,49508.95,729856187
BEIS,Met Office,2021-04-09,11 SERVICES,PROGRAMMES,University Of Birmingham,451480,-49508.95,729856187
BEIS,Met Office,2021-04-09,11 SERVICES,PROGRAMMES,University Of Birmingham,454369,1250,115036848
BEIS,Met Office,2021-04-13,11 SERVICES,MARKETS,ADOPSTAR,454464,4918.08,745091237
BEIS,Met Office,2021-04-13,11 SERVICES,TECHNOLOGY AND CIO,AKAMAI TECHNOLOGIES LTD,454624,25819.95,745091237
BEIS,Met Office,2021-04-13,11 SERVICES,TECHNOLOGY AND CIO,AKAMAI TECHNOLOGIES LTD,454624,1483.32,GB334331879
BEIS,Met Office,2021-04-13,11 SERVICES,SERVICES,ARNOLD CLARK FINANCE LIMITED,454465,12974,-
BEIS,Met Office,2021-04-13,06 ACCOMMODATION,CHIEF FINANCIAL OFFICER,Bedford Borough Council,454552,247.26,118033013
BEIS,Met Office,2021-04-13,06 ACCOMMODATION,CHIEF FINANCIAL OFFICER,BROXTOWE BOROUGH COUNCIL,454555,101679.61,380609841
BEIS,Met Office,2021-04-13,11 SERVICES,MARKETS,CACI LTD,454737,129811,GB424750755
BEIS,Met Office,2021-04-13,11 SERVICES,PROGRAMMES,CAMBRIDGE ENVIRONMENTAL RESEARCH CONSULTANTS,454760,267.44,768489458
BEIS,Met Office,2021-04-13,03 STAFF COSTS T&S,SERVICES,CARTUS LTD,454619,400,768489458
BEIS,Met Office,2021-04-13,03 STAFF COSTS T&S,SERVICES,CARTUS LTD,454651,137,768489458
BEIS,Met Office,2021-04-13,03 STAFF COSTS T&S,SERVICES,CARTUS LTD,454661,520,GB 843 8792 82
BEIS,Met Office,2021-04-13,06 ACCOMMODATION,CHIEF FINANCIAL OFFICER,CELLNEX,454644,3430,267799485
BEIS,Met Office,2021-04-13,06 ACCOMMODATION,CHIEF FINANCIAL OFFICER,Comhairle Nan Eilean Siar,454554,8483,-
BEIS,Met Office,2021-04-13,06 ACCOMMODATION,CHIEF FINANCIAL OFFICER,DACORUM BOROUGH COUNCIL,454558,549.87,215557314
BEIS,Met Office,2021-04-13,03 STAFF COSTS T&S,CHIEF FINANCIAL OFFICER,ENTERPRISE RENT A CAR UK LTD,454789,327.92,215557314
BEIS,Met Office,2021-04-13,03 STAFF COSTS T&S,CHIEF FINANCIAL OFFICER,ENTERPRISE RENT A CAR UK LTD,454790,700,N/A
BEIS,Met Office,2021-04-13,03 STAFF COSTS T&S,SERVICES,FALKLAND ISLAND COMPANY LTD,454636,700,N/A
BEIS,Met Office,2021-04-13,03 STAFF COSTS T&S,SERVICES,FALKLAND ISLAND COMPANY LTD,454650,700,N/A
BEIS,Met Office,2021-04-13,03 STAFF COSTS T&S,SERVICES,FALKLAND ISLAND COMPANY LTD,454702,2700,583540529
BEIS,Met Office,2021-04-13,04 CONTRACTORS,TECHNOLOGY AND CIO,FDM GROUP LIMITED,454740,5400,583540529
BEIS,Met Office,2021-04-13,04 CONTRACTORS,TECHNOLOGY AND CIO,FDM GROUP LIMITED,454741,4590,583540529
BEIS,Met Office,2021-04-13,04 CONTRACTORS,TECHNOLOGY AND CIO,FDM GROUP LIMITED,454742,6210,583540529
BEIS,Met Office,2021-04-13,04 CONTRACTORS,TECHNOLOGY AND CIO,FDM GROUP LIMITED,454743,8400,583540529
BEIS,Met Office,2021-04-13,04 CONTRACTORS,TECHNOLOGY AND CIO,FDM GROUP LIMITED,454744,6210,583540529
BEIS,Met Office,2021-04-13,04 CONTRACTORS,TECHNOLOGY AND CIO,FDM GROUP LIMITED,454745,4590,583540529
BEIS,Met Office,2021-04-13,04 CONTRACTORS,TECHNOLOGY AND CIO,FDM GROUP LIMITED,454747,34.22,6388047V
BEIS,Met Office,2021-04-13,08 SOFTWARE LICENCES,TECHNOLOGY AND CIO,GOOGLE IRELAND LTD,454523,403.85,888 8508 47
BEIS,Met Office,2021-04-13,06 ACCOMMODATION,CHIEF FINANCIAL OFFICER,GOVERNMENT PROPERTY AGENCY,454617,5271,238839422
BEIS,Met Office,2021-04-13,11 SERVICES,PEOPLE,HAWK INCENTIVES LTD,454646,366.15,773695871
BEIS,Met Office,2021-04-13,04 CONTRACTORS,PEOPLE,HAYS SPECIALIST RECRUITMENT LTD,454599,453,773695871
BEIS,Met Office,2021-04-13,04 CONTRACTORS,TECHNOLOGY AND CIO,HAYS SPECIALIST RECRUITMENT LTD,454600,412.53,773695871
BEIS,Met Office,2021-04-13,04 CONTRACTORS,PEOPLE,HAYS SPECIALIST RECRUITMENT LTD,454601,183.08,773695871
BEIS,Met Office,2021-04-13,04 CONTRACTORS,MARKETS,HAYS SPECIALIST RECRUITMENT LTD,454602,133.43,773695871
BEIS,Met Office,2021-04-13,04 CONTRACTORS,PEOPLE,HAYS SPECIALIST RECRUITMENT LTD,454691,266.86,773695871
BEIS,Met Office,2021-04-13,04 CONTRACTORS,PEOPLE,HAYS SPECIALIST RECRUITMENT LTD,454703,226.95,766144223
BEIS,Met Office,2021-04-13,06 ACCOMMODATION,SERVICES,INMARSAT SOLUTIONS (CANADA) INC,454623,80560,634509735
BEIS,Met Office,2021-04-13,11 SERVICES,SERVICES,Landmark Information Group Ltd,454758,98697.62,634509735
BEIS,Met Office,2021-04-13,11 SERVICES,SERVICES,Landmark Information Group Ltd,454759,3256.63,267763712
BEIS,Met Office,2021-04-13,11 SERVICES,MARKETS,LTS INTERNATIONAL,454657,450.78,267763712
BEIS,Met Office,2021-04-13,11 SERVICES,MARKETS,LTS INTERNATIONAL,454659,11098.96,197694731
BEIS,Met Office,2021-04-13,11 SERVICES,CHIEF FINANCIAL OFFICER,MAWASEM LTD,454594,8315,843316243
BEIS,Met Office,2021-04-13,11 SERVICES,SERVICES,MERKLE UK THREE LTD T/A MERKLE PERISCOPIX,454735,195.8,833433540
BEIS,Met Office,2021-04-13,07 EQUIPMENT,SCIENCE,METALWORK SOLUTIONS LTD & DIRECT ASSEMBLY SOL,454784,77.7,751402071
BEIS,Met Office,2021-04-13,13 MISCELLANEOUS,CHIEF FINANCIAL OFFICER,NORSCOTT VENDING SERVICES LTD,454551,85,751402071
BEIS,Met Office,2021-04-13,13 MISCELLANEOUS,CHIEF FINANCIAL OFFICER,NORSCOTT VENDING SERVICES LTD,454561,17364.75,648280518
BEIS,Met Office,2021-04-13,10 EQUIPMENT MAINTENANCE,SERVICES,OVARRO TS LTD,454597,499.01,583565114
BEIS,Met Office,2021-04-13,13 MISCELLANEOUS,CHIEF FINANCIAL OFFICER,POSTURITE (UK) LTD,454410,531.93,583565114
BEIS,Met Office,2021-04-13,13 MISCELLANEOUS,CHIEF FINANCIAL OFFICER,POSTURITE (UK) LTD,454596,446.51,719067718
BEIS,Met Office,2021-04-13,04 CONTRACTORS,PROGRAMMES,QUALSERV CONSULTING LTD,454615,8355.6,719067718
BEIS,Met Office,2021-04-13,04 CONTRACTORS,PROGRAMMES,QUALSERV CONSULTING LTD,454616,13943.52,719067718
BEIS,Met Office,2021-04-13,04 CONTRACTORS,TECHNOLOGY AND CIO,QUALSERV CONSULTING LTD,454626,7937.76,719067718
BEIS,Met Office,2021-04-13,04 CONTRACTORS,CHIEF FINANCIAL OFFICER,QUALSERV CONSULTING LTD,454627,7545.6,719067718
BEIS,Met Office,2021-04-13,04 CONTRACTORS,PROGRAMMES,QUALSERV CONSULTING LTD,454628,8400,719067718
BEIS,Met Office,2021-04-13,04 CONTRACTORS,PROGRAMMES,QUALSERV CONSULTING LTD,454629,8048.64,719067718
BEIS,Met Office,2021-04-13,04 CONTRACTORS,PROGRAMMES,QUALSERV CONSULTING LTD,454630,10560,719067718
BEIS,Met Office,2021-04-13,04 CONTRACTORS,TECHNOLOGY AND CIO,QUALSERV CONSULTING LTD,454631,10757.28,719067718
BEIS,Met Office,2021-04-13,04 CONTRACTORS,MARKETS,QUALSERV CONSULTING LTD,454632,16450,719067718
BEIS,Met Office,2021-04-13,04 CONTRACTORS,PROGRAMMES,QUALSERV CONSULTING LTD,454633,14196,719067718
BEIS,Met Office,2021-04-13,04 CONTRACTORS,TECHNOLOGY AND CIO,QUALSERV CONSULTING LTD,454635,12344.4,719067718
BEIS,Met Office,2021-04-13,04 CONTRACTORS,PROGRAMMES,QUALSERV CONSULTING LTD,454652,10757.28,719067718
BEIS,Met Office,2021-04-13,04 CONTRACTORS,PROGRAMMES,QUALSERV CONSULTING LTD,454686,11726.16,719067718
BEIS,Met Office,2021-04-13,04 CONTRACTORS,TECHNOLOGY AND CIO,QUALSERV CONSULTING LTD,454687,8274.96,719067718
BEIS,Met Office,2021-04-13,04 CONTRACTORS,PROGRAMMES,QUALSERV CONSULTING LTD,454688,6720,719067718
BEIS,Met Office,2021-04-13,04 CONTRACTORS,CHIEF FINANCIAL OFFICER,QUALSERV CONSULTING LTD,454689,345.12,719067718
BEIS,Met Office,2021-04-13,04 CONTRACTORS,CHIEF FINANCIAL OFFICER,QUALSERV CONSULTING LTD,454690,37500,287461957
BEIS,Met Office,2021-04-13,11 SERVICES,SCIENCE,SCIENCE & TECHNOLOGY FACILITIES COUNCIL,454697,37500,287461957
BEIS,Met Office,2021-04-13,11 SERVICES,SCIENCE,SCIENCE & TECHNOLOGY FACILITIES COUNCIL,454704,61.5,553769603
BEIS,Met Office,2021-04-13,06 ACCOMMODATION,MARKETS,SCOTTISH HYDRO-ELECTRIC,454557,8200,812035476
BEIS,Met Office,2021-04-13,04 CONTRACTORS,TECHNOLOGY AND CIO,SOLOS CONSULTANTS LTD,454634,2796.84,812035476
BEIS,Met Office,2021-04-13,04 CONTRACTORS,PROGRAMMES,SOLOS CONSULTANTS LTD,454660,9788.94,812035476
BEIS,Met Office,2021-04-13,04 CONTRACTORS,PROGRAMMES,SOLOS CONSULTANTS LTD,454667,16588,812035476
BEIS,Met Office,2021-04-13,04 CONTRACTORS,PROGRAMMES,SOLOS CONSULTANTS LTD,454669,21597.6,812035476
BEIS,Met Office,2021-04-13,04 CONTRACTORS,PROGRAMMES,SOLOS CONSULTANTS LTD,454671,7679.55,812035476
BEIS,Met Office,2021-04-13,04 CONTRACTORS,PROGRAMMES,SOLOS CONSULTANTS LTD,454673,8113,812035476
BEIS,Met Office,2021-04-13,04 CONTRACTORS,MARKETS,SOLOS CONSULTANTS LTD,454675,10710.24,812035476
BEIS,Met Office,2021-04-13,04 CONTRACTORS,PROGRAMMES,SOLOS CONSULTANTS LTD,454700,10508.16,812035476
BEIS,Met Office,2021-04-13,04 CONTRACTORS,PROGRAMMES,SOLOS CONSULTANTS LTD,454701,5500,812035476
BEIS,Met Office,2021-04-13,04 CONTRACTORS,PROGRAMMES,SOLOS CONSULTANTS LTD,454706,10786.08,812035476
BEIS,Met Office,2021-04-13,04 CONTRACTORS,PEOPLE,SOLOS CONSULTANTS LTD,454707,10757.64,812035476
BEIS,Met Office,2021-04-13,04 CONTRACTORS,PROGRAMMES,SOLOS CONSULTANTS LTD,454708,16224,812035476
BEIS,Met Office,2021-04-13,04 CONTRACTORS,TECHNOLOGY AND CIO,SOLOS CONSULTANTS LTD,454709,14044.8,812035476
BEIS,Met Office,2021-04-13,04 CONTRACTORS,CHIEF FINANCIAL OFFICER,SOLOS CONSULTANTS LTD,454710,10558.8,812035476
BEIS,Met Office,2021-04-13,04 CONTRACTORS,TECHNOLOGY AND CIO,SOLOS CONSULTANTS LTD,454711,14094.96,812035476
BEIS,Met Office,2021-04-13,04 CONTRACTORS,CHIEF FINANCIAL OFFICER,SOLOS CONSULTANTS LTD,454712,16085.28,812035476
BEIS,Met Office,2021-04-13,04 CONTRACTORS,PROGRAMMES,SOLOS CONSULTANTS LTD,454713,700,840156451
BEIS,Met Office,2021-04-13,11 SERVICES,MARKETS,SPOKE (INTERACTIVE) LTD,454736,10137.45,570118464
BEIS,Met Office,2021-04-13,11 SERVICES,TECHNOLOGY AND CIO,SSE CONTRACTING LTD,454699,75000,991261800
BEIS,Met Office,2021-04-13,11 SERVICES,SCIENCE,University Of Bristol,454653,75995.57,142047795
BEIS,Met Office,2021-04-13,11 SERVICES,PROGRAMMES,University Of Exeter,454437,12500,142047795
BEIS,Met Office,2021-04-13,11 SERVICES,SCIENCE,University Of Exeter,454563,18500,142047795
BEIS,Met Office,2021-04-13,11 SERVICES,SCIENCE,University Of Exeter,454610,13584.72,876328977
BEIS,Met Office,2021-04-13,04 CONTRACTORS,TECHNOLOGY AND CIO,WA CONSULTANTS LTD,454637,3510,876328977
BEIS,Met Office,2021-04-13,04 CONTRACTORS,MARKETS,WA CONSULTANTS LTD,454638,6984.8,876328977
BEIS,Met Office,2021-04-13,04 CONTRACTORS,TECHNOLOGY AND CIO,WA CONSULTANTS LTD,454639,11736,876328977
BEIS,Met Office,2021-04-13,04 CONTRACTORS,TECHNOLOGY AND CIO,WA CONSULTANTS LTD,454641,10560,876328977
BEIS,Met Office,2021-04-13,04 CONTRACTORS,PROGRAMMES,WA CONSULTANTS LTD,454642,9807.16,876328977
BEIS,Met Office,2021-04-13,04 CONTRACTORS,PROGRAMMES,WA CONSULTANTS LTD,454643,5225,876328977
BEIS,Met Office,2021-04-13,04 CONTRACTORS,PROGRAMMES,WA CONSULTANTS LTD,454645,9059.57,876328977
BEIS,Met Office,2021-04-13,04 CONTRACTORS,TECHNOLOGY AND CIO,WA CONSULTANTS LTD,454647,2369,876328977
BEIS,Met Office,2021-04-13,04 CONTRACTORS,TECHNOLOGY AND CIO,WA CONSULTANTS LTD,454656,2991.88,876328977
BEIS,Met Office,2021-04-13,04 CONTRACTORS,CHIEF FINANCIAL OFFICER,WA CONSULTANTS LTD,454662,1392.4,876328977
BEIS,Met Office,2021-04-13,04 CONTRACTORS,PROGRAMMES,WA CONSULTANTS LTD,454663,1729.72,876328977
BEIS,Met Office,2021-04-13,04 CONTRACTORS,CHIEF FINANCIAL OFFICER,WA CONSULTANTS LTD,454664,1744.52,876328977
BEIS,Met Office,2021-04-13,04 CONTRACTORS,PROGRAMMES,WA CONSULTANTS LTD,454665,1495.95,876328977
BEIS,Met Office,2021-04-13,04 CONTRACTORS,TECHNOLOGY AND CIO,WA CONSULTANTS LTD,454666,1748.12,876328977
BEIS,Met Office,2021-04-13,04 CONTRACTORS,PROGRAMMES,WA CONSULTANTS LTD,454668,1578,876328977
BEIS,Met Office,2021-04-13,04 CONTRACTORS,CHIEF FINANCIAL OFFICER,WA CONSULTANTS LTD,454670,1500,876328977
BEIS,Met Office,2021-04-13,04 CONTRACTORS,PROGRAMMES,WA CONSULTANTS LTD,454672,497.3,876328977
BEIS,Met Office,2021-04-13,04 CONTRACTORS,TECHNOLOGY AND CIO,WA CONSULTANTS LTD,454674,526,876328977
BEIS,Met Office,2021-04-13,04 CONTRACTORS,CHIEF FINANCIAL OFFICER,WA CONSULTANTS LTD,454676,498.65,876328977
BEIS,Met Office,2021-04-13,04 CONTRACTORS,PROGRAMMES,WA CONSULTANTS LTD,454677,755,876328977
BEIS,Met Office,2021-04-13,04 CONTRACTORS,PROGRAMMES,WA CONSULTANTS LTD,454678,11636.6,876328977
BEIS,Met Office,2021-04-13,04 CONTRACTORS,TECHNOLOGY AND CIO,WA CONSULTANTS LTD,454680,12360,876328977
BEIS,Met Office,2021-04-13,04 CONTRACTORS,TECHNOLOGY AND CIO,WA CONSULTANTS LTD,454682,1615.11,876328977
BEIS,Met Office,2021-04-13,04 CONTRACTORS,CHIEF FINANCIAL OFFICER,WA CONSULTANTS LTD,454683,2172.32,876328977
BEIS,Met Office,2021-04-13,04 CONTRACTORS,PROGRAMMES,WA CONSULTANTS LTD,454684,4840.3,-
BEIS,Met Office,2021-04-13,06 ACCOMMODATION,CHIEF FINANCIAL OFFICER,WEST LANCASHIRE BOROUGH COUNCIL,454560,4796.03,749536001
BEIS,Met Office,2021-04-13,11 SERVICES,TECHNOLOGY AND CIO,WIREFAST LTD,454461,43.14,749536001
BEIS,Met Office,2021-04-13,11 SERVICES,TECHNOLOGY AND CIO,WIREFAST LTD,454463,22.25,991280207
BEIS,Met Office,2021-04-13,11 SERVICES,SERVICES,WORLDPAY LTD,454473,3250,673900720
BEIS,Met Office,2021-04-13,10 EQUIPMENT MAINTENANCE,SERVICES,YOUNG CALIBRATION LIMITED,454567,15,673900720
BEIS,Met Office,2021-04-13,11 SERVICES,SERVICES,YOUNG CALIBRATION LIMITED,454567,140.06,155790484
BEIS,Met Office,2021-04-14,10 EQUIPMENT MAINTENANCE,SERVICES,ELASTICSEARCH LTD,10183,3252.35,DE252519763
BEIS,Met Office,2021-04-14,13 MISCELLANEOUS,PROGRAMMES,ESSL,22377,2222.51,PT511283733
BEIS,Met Office,2021-04-14,11 SERVICES,SERVICES,"EUTELSAT MADERIA, UNIPESSOAL LDA",22391,2067.95,-
BEIS,Met Office,2021-04-14,11 SERVICES,MARKETS,"INTELLOVATIONS, LLC",10182,1913,-
BEIS,Met Office,2021-04-14,11 SERVICES,PROGRAMMES,MAURITIUS METEOROLOGICAL SOCIETY,453734,88800.48,GB 338 5487 64
BEIS,Met Office,2021-04-14,11 SERVICES,PROGRAMMES,National Oceanography Centre,22262,81164.26,GB 338 5487 64
BEIS,Met Office,2021-04-14,11 SERVICES,PROGRAMMES,National Oceanography Centre,22263,5135.29,GB 338 5487 64
BEIS,Met Office,2021-04-14,13 MISCELLANEOUS,SERVICES,National Oceanography Centre,22376,-85823.58,GB 338 5487 64
BEIS,Met Office,2021-04-14,11 SERVICES,PROGRAMMES,National Oceanography Centre,22389,-78443.35,GB 338 5487 64
BEIS,Met Office,2021-04-14,11 SERVICES,PROGRAMMES,National Oceanography Centre,22390,50.2,725151948
BEIS,Met Office,2021-04-14,11 SERVICES,SERVICES,NSSL GLOBAL LTD,10165,50.2,725151948
BEIS,Met Office,2021-04-14,11 SERVICES,SERVICES,NSSL GLOBAL LTD,10166,3580.9,FR90130023385
BEIS,Met Office,2021-04-14,11 SERVICES,SCIENCE,SORBONNE UNIVERSITE,22506,460810.63,530846451
BEIS,Met Office,2021-04-14,07 EQUIPMENT,MARKETS,SWALE TECHNOLOGIES LTD,10181,0,FI01244162
BEIS,Met Office,2021-04-14,STOCK,SERVICES,Vaisala Oyj,22323,21954.45,FI01244162
BEIS,Met Office,2021-04-14,TRADE CREDITORS,SERVICES,Vaisala Oyj,22323,259.35,538877093
BEIS,Met Office,2021-04-15,11 SERVICES,CHIEF FINANCIAL OFFICER,ADAM PHONES LTD,454827,9140.5,892 5045 08
BEIS,Met Office,2021-04-15,11 SERVICES,PEOPLE,AGENT MARKETING,454354,9050,892 5045 08
BEIS,Met Office,2021-04-15,11 SERVICES,PEOPLE,AGENT MARKETING,454894,-9140.5,892 5045 08
BEIS,Met Office,2021-04-15,11 SERVICES,PEOPLE,AGENT MARKETING,454897,82.6,981686175
BEIS,Met Office,2021-04-15,11 SERVICES,CHIEF FINANCIAL OFFICER,ANVIL MOBILE LIMITED,454833,98.6,981686175
BEIS,Met Office,2021-04-15,11 SERVICES,CHIEF FINANCIAL OFFICER,ANVIL MOBILE LIMITED,454833,111.3,981686175
BEIS,Met Office,2021-04-15,11 SERVICES,CHIEF FINANCIAL OFFICER,ANVIL MOBILE LIMITED,454833,34.85,981686175
BEIS,Met Office,2021-04-15,11 SERVICES,CHIEF FINANCIAL OFFICER,ANVIL MOBILE LIMITED,454833,43.6,981686175
BEIS,Met Office,2021-04-15,11 SERVICES,CHIEF FINANCIAL OFFICER,ANVIL MOBILE LIMITED,454833,63.75,GB847176988
BEIS,Met Office,2021-04-15,06 ACCOMMODATION,CHIEF FINANCIAL OFFICER,BIDVEST NOONAN UK LTD,454562,11250,613295452
BEIS,Met Office,2021-04-15,11 SERVICES,PROGRAMMES,BJSS LIMITED,454921,82587.5,613295452
BEIS,Met Office,2021-04-15,11 SERVICES,PROGRAMMES,BJSS LIMITED,454922,15943.57,245719348
BEIS,Met Office,2021-04-15,11 SERVICES,CHIEF FINANCIAL OFFICER,BT plc,454834,131.95,945850885
BEIS,Met Office,2021-04-15,06 ACCOMMODATION,CHIEF FINANCIAL OFFICER,BUSINESS STREAM,454933,433.99,768489458
BEIS,Met Office,2021-04-15,03 STAFF COSTS T&S,SERVICES,CARTUS LTD,454649,1079,768489458
BEIS,Met Office,2021-04-15,03 STAFF COSTS T&S,SERVICES,CARTUS LTD,454655,110,768489458
BEIS,Met Office,2021-04-15,03 STAFF COSTS T&S,SERVICES,CARTUS LTD,454658,1064.81,577704800
BEIS,Met Office,2021-04-15,06 ACCOMMODATION,CHIEF FINANCIAL OFFICER,CORONA ENERGY LTD,454795,19821.31,577704800
BEIS,Met Office,2021-04-15,06 ACCOMMODATION,CHIEF FINANCIAL OFFICER,CORONA ENERGY LTD,454796,846.24,577704800
BEIS,Met Office,2021-04-15,06 ACCOMMODATION,CHIEF FINANCIAL OFFICER,CORONA ENERGY LTD,454931,990,701022805
BEIS,Met Office,2021-04-15,11 SERVICES,SERVICES,DOT SOFTWARE LTD,454909,3480,701022805
BEIS,Met Office,2021-04-15,11 SERVICES,SERVICES,DOT SOFTWARE LTD,454909,-92261.87,523041202
BEIS,Met Office,2021-04-15,06 ACCOMMODATION,CHIEF FINANCIAL OFFICER,EDF ENERGY CUSTOMERS PLC,454603,-99212.56,523041202
BEIS,Met Office,2021-04-15,06 ACCOMMODATION,CHIEF FINANCIAL OFFICER,EDF ENERGY CUSTOMERS PLC,454604,436685.05,523041202
BEIS,Met Office,2021-04-15,06 ACCOMMODATION,CHIEF FINANCIAL OFFICER,EDF ENERGY CUSTOMERS PLC,454605,99300.14,523041202
BEIS,Met Office,2021-04-15,06 ACCOMMODATION,CHIEF FINANCIAL OFFICER,EDF ENERGY CUSTOMERS PLC,454612,92239.23,523041202
BEIS,Met Office,2021-04-15,06 ACCOMMODATION,CHIEF FINANCIAL OFFICER,EDF ENERGY CUSTOMERS PLC,454613,14465.08,155790484
BEIS,Met Office,2021-04-15,08 SOFTWARE LICENCES,SERVICES,ELASTICSEARCH LTD,453969,10.58,GB798572653
BEIS,Met Office,2021-04-15,11 SERVICES,CHIEF FINANCIAL OFFICER,EXPONENTIAL-E,454828,643.15,539716218
BEIS,Met Office,2021-04-15,11 SERVICES,CHIEF FINANCIAL OFFICER,GB GROUP PLC,454598,702,NOVAT
BEIS,Met Office,2021-04-15,11 SERVICES,CHIEF FINANCIAL OFFICER,GIBRALTAR NYNEX COMMUNICATIONS LTD,454903,150,-
BEIS,Met Office,2021-04-15,11 SERVICES,SCIENCE,HILARY CORNISH,454614,61887.93,570039752
BEIS,Met Office,2021-04-15,11 SERVICES,PROGRAMMES,Hr Wallingford Ltd,454595,24000,-
BEIS,Met Office,2021-04-15,12 INTERNATIONAL,MARKETS,IDEMS INTERNATIONAL COMMUNITY INTEREST CO,454739,1162.34,766144223
BEIS,Met Office,2021-04-15,06 ACCOMMODATION,SERVICES,INMARSAT SOLUTIONS (CANADA) INC,454531,175,766144223
BEIS,Met Office,2021-04-15,06 ACCOMMODATION,SERVICES,INMARSAT SOLUTIONS (CANADA) INC,454731,2892.5,267763712
BEIS,Met Office,2021-04-15,11 SERVICES,MARKETS,LTS INTERNATIONAL,454911,1716.79,267763712
BEIS,Met Office,2021-04-15,11 SERVICES,MARKETS,LTS INTERNATIONAL,454912,686.2,416706654
BEIS,Met Office,2021-04-15,11 SERVICES,CHIEF FINANCIAL OFFICER,MITIE SECURITY LTD,454469,1369.59,416706654
BEIS,Met Office,2021-04-15,11 SERVICES,CHIEF FINANCIAL OFFICER,MITIE SECURITY LTD,454470,60,269129336
BEIS,Met Office,2021-04-15,11 SERVICES,CHIEF FINANCIAL OFFICER,Morton Fraser LLP,454367,91400.7,GB 338 5487 64
BEIS,Met Office,2021-04-15,11 SERVICES,PROGRAMMES,National Oceanography Centre,453976,100000,GB 338 5487 64
BEIS,Met Office,2021-04-15,11 SERVICES,PROGRAMMES,National Oceanography Centre,453978,12486.38,GB 338 5487 64
BEIS,Met Office,2021-04-15,11 SERVICES,MARKETS,National Oceanography Centre,454746,29931.75,187113309
BEIS,Met Office,2021-04-15,08 SOFTWARE LICENCES,SERVICES,NEW SIGNATURE UK LTD,454727,9275.6,GB238034379
BEIS,Met Office,2021-04-15,06 ACCOMMODATION,CHIEF FINANCIAL OFFICER,OCS Group UK Limited,454355,109308.18,GB238034379
BEIS,Met Office,2021-04-15,06 ACCOMMODATION,CHIEF FINANCIAL OFFICER,OCS Group UK Limited,454355,1280,-
BEIS,Met Office,2021-04-15,11 SERVICES,CHIEF FINANCIAL OFFICER,REDACTED PERSONAL DATA,441546,-1280,-
BEIS,Met Office,2021-04-15,06 ACCOMMODATION,CHIEF FINANCIAL OFFICER,REDACTED PERSONAL DATA,442416,95,899936427
BEIS,Met Office,2021-04-15,06 ACCOMMODATION,CHIEF FINANCIAL OFFICER,REDACTED PERSONAL DATA,454792,775,899936427
BEIS,Met Office,2021-04-15,06 ACCOMMODATION,CHIEF FINANCIAL OFFICER,REDACTED PERSONAL DATA,454793,720,-
BEIS,Met Office,2021-04-15,11 SERVICES,CHIEF FINANCIAL OFFICER,REDACTED PERSONAL DATA,454907,1965,397000555
BEIS,Met Office,2021-04-15,11 SERVICES,CHIEF FINANCIAL OFFICER,Reuters Ltd,454622,109.09,176286083
BEIS,Met Office,2021-04-15,06 ACCOMMODATION,CHIEF FINANCIAL OFFICER,RIVER RIDGE,454902,2023.75,924964394
BEIS,Met Office,2021-04-15,11 SERVICES,PROGRAMMES,ROWE IT LTD,454438,52000,924964394
BEIS,Met Office,2021-04-15,11 SERVICES,PROGRAMMES,ROWE IT LTD,454438,31237.5,924964394
BEIS,Met Office,2021-04-15,11 SERVICES,PROGRAMMES,ROWE IT LTD,454440,2782.67,722887607
BEIS,Met Office,2021-04-15,06 ACCOMMODATION,CHIEF FINANCIAL OFFICER,SAFESTORE LTD,430364,-2782.67,722887607
BEIS,Met Office,2021-04-15,06 ACCOMMODATION,CHIEF FINANCIAL OFFICER,SAFESTORE LTD,431592,2815.28,722887607
BEIS,Met Office,2021-04-15,06 ACCOMMODATION,CHIEF FINANCIAL OFFICER,SAFESTORE LTD,454788,13390,363124281
BEIS,Met Office,2021-04-15,10 EQUIPMENT MAINTENANCE,SERVICES,SCHLEIFRING SYSTEMS LTD,452816,80,363124281
BEIS,Met Office,2021-04-15,10 EQUIPMENT MAINTENANCE,SERVICES,SCHLEIFRING SYSTEMS LTD,452816,665,978367258
BEIS,Met Office,2021-04-15,06 ACCOMMODATION,CHIEF FINANCIAL OFFICER,SHETLAND GRASSCUTTING,454781,2961.96,978367258
BEIS,Met Office,2021-04-15,06 ACCOMMODATION,CHIEF FINANCIAL OFFICER,SHETLAND GRASSCUTTING,454783,18330,812035476
BEIS,Met Office,2021-04-15,04 CONTRACTORS,PROGRAMMES,SOLOS CONSULTANTS LTD,454714,14950,812035476
BEIS,Met Office,2021-04-15,04 CONTRACTORS,PROGRAMMES,SOLOS CONSULTANTS LTD,454715,2618.75,812035476
BEIS,Met Office,2021-04-15,04 CONTRACTORS,PROGRAMMES,SOLOS CONSULTANTS LTD,454716,15600,812035476
BEIS,Met Office,2021-04-15,04 CONTRACTORS,TECHNOLOGY AND CIO,SOLOS CONSULTANTS LTD,454717,10229.78,812035476
BEIS,Met Office,2021-04-15,04 CONTRACTORS,MARKETS,SOLOS CONSULTANTS LTD,454718,11536.8,812035476
BEIS,Met Office,2021-04-15,04 CONTRACTORS,SERVICES,SOLOS CONSULTANTS LTD,454720,18810,812035476
BEIS,Met Office,2021-04-15,04 CONTRACTORS,TECHNOLOGY AND CIO,SOLOS CONSULTANTS LTD,454721,21216,812035476
BEIS,Met Office,2021-04-15,04 CONTRACTORS,PROGRAMMES,SOLOS CONSULTANTS LTD,454722,12480,812035476
BEIS,Met Office,2021-04-15,04 CONTRACTORS,TECHNOLOGY AND CIO,SOLOS CONSULTANTS LTD,454723,7624.32,812035476
BEIS,Met Office,2021-04-15,04 CONTRACTORS,CHIEF FINANCIAL OFFICER,SOLOS CONSULTANTS LTD,454724,8426.88,812035476
BEIS,Met Office,2021-04-15,04 CONTRACTORS,TECHNOLOGY AND CIO,SOLOS CONSULTANTS LTD,454725,8400,812035476
BEIS,Met Office,2021-04-15,04 CONTRACTORS,PEOPLE,SOLOS CONSULTANTS LTD,454726,14943.5,812035476
BEIS,Met Office,2021-04-15,04 CONTRACTORS,TECHNOLOGY AND CIO,SOLOS CONSULTANTS LTD,454733,12558,812035476
BEIS,Met Office,2021-04-15,04 CONTRACTORS,PROGRAMMES,SOLOS CONSULTANTS LTD,454734,6921.48,778603785
BEIS,Met Office,2021-04-15,11 SERVICES,CHIEF FINANCIAL OFFICER,TELEFONICA O2 UK LIMITED,454764,600,524371168
BEIS,Met Office,2021-04-15,13 MISCELLANEOUS,SCIENCE,University College London,454813,1250,524371168
BEIS,Met Office,2021-04-15,13 MISCELLANEOUS,SCIENCE,University College London,454814,1000,142047795
BEIS,Met Office,2021-04-15,13 MISCELLANEOUS,SCIENCE,University Of Exeter,454923,2000,142047795
BEIS,Met Office,2021-04-15,13 MISCELLANEOUS,SCIENCE,University Of Exeter,454926,2400,876328977
BEIS,Met Office,2021-04-15,04 CONTRACTORS,TECHNOLOGY AND CIO,WA CONSULTANTS LTD,454782,2472,876328977
BEIS,Met Office,2021-04-15,04 CONTRACTORS,TECHNOLOGY AND CIO,WA CONSULTANTS LTD,454797,2792.48,876328977
BEIS,Met Office,2021-04-15,04 CONTRACTORS,TECHNOLOGY AND CIO,WA CONSULTANTS LTD,454885,-675,GB 891 9765 57
BEIS,Met Office,2021-04-16,PLANT AND EQUIPMENT,SERVICES,SOUTHERN ROPES,455016,2981.25,848940776
BEIS,Met Office,2021-04-20,11 SERVICES,MARKETS,ACCELERATION EMARKETING,454832,320,-
BEIS,Met Office,2021-04-20,03 STAFF COSTS T&S,SERVICES,AIRPORT CAR RENTALS LTD,454928,1565.68,747880191
BEIS,Met Office,2021-04-20,11 SERVICES,CHIEF FINANCIAL OFFICER,ALLSTAR BUSINESS SOLUTIONS LTD,455031,55440,GB484746209
BEIS,Met Office,2021-04-20,13 MISCELLANEOUS,CHIEF FINANCIAL OFFICER,ARTHUR J. GALLAGHER INSURANCE BROKERS LIMITED,455045,12194,GB641407169
BEIS,Met Office,2021-04-20,11 SERVICES,PROGRAMMES,BAE SYSTEMS APPLIED INTELLIGENCE LIMITED,454729,21574,GB641407169
BEIS,Met Office,2021-04-20,11 SERVICES,PROGRAMMES,BAE SYSTEMS APPLIED INTELLIGENCE LIMITED,454730,23333.49,GB641407169
BEIS,Met Office,2021-04-20,11 SERVICES,PROGRAMMES,BAE SYSTEMS APPLIED INTELLIGENCE LIMITED,454732,30181.5,GB641407169
BEIS,Met Office,2021-04-20,11 SERVICES,PROGRAMMES,BAE SYSTEMS APPLIED INTELLIGENCE LIMITED,454904,7920,GB641407169
BEIS,Met Office,2021-04-20,11 SERVICES,PROGRAMMES,BAE SYSTEMS APPLIED INTELLIGENCE LIMITED,454950,39.8,GB391085740
BEIS,Met Office,2021-04-20,06 ACCOMMODATION,CHIEF FINANCIAL OFFICER,BANNER GROUP LIMITED,455011,6.74,GB847176988
BEIS,Met Office,2021-04-20,06 ACCOMMODATION,CHIEF FINANCIAL OFFICER,BIDVEST NOONAN UK LTD,455026,15.34,GB847176988
BEIS,Met Office,2021-04-20,06 ACCOMMODATION,CHIEF FINANCIAL OFFICER,BIDVEST NOONAN UK LTD,455058,8500,613295452
BEIS,Met Office,2021-04-20,04 CONTRACTORS,PROGRAMMES,BJSS LIMITED,455025,166.24,245719348
BEIS,Met Office,2021-04-20,11 SERVICES,CHIEF FINANCIAL OFFICER,BT CONFERENCING,455006,-1216.95,245719348
BEIS,Met Office,2021-04-20,11 SERVICES,CHIEF FINANCIAL OFFICER,BT GLOBAL SERVICES,454550,11217.67,245719348
BEIS,Met Office,2021-04-20,11 SERVICES,CHIEF FINANCIAL OFFICER,BT GLOBAL SERVICES,455059,12098.93,245719348
BEIS,Met Office,2021-04-20,11 SERVICES,CHIEF FINANCIAL OFFICER,BT plc,454559,7282.67,945850885
BEIS,Met Office,2021-04-20,06 ACCOMMODATION,CHIEF FINANCIAL OFFICER,BUSINESS STREAM,454934,115.5,927365208
BEIS,Met Office,2021-04-20,06 ACCOMMODATION,CHIEF FINANCIAL OFFICER,BUSINESS SUPPORT CENTRE LTD,454886,5971.77,823818226
BEIS,Met Office,2021-04-20,08 SOFTWARE LICENCES,TECHNOLOGY AND CIO,BYTES SOFTWARE SERVICES LTD,454929,1871.8,823818226
BEIS,Met Office,2021-04-20,08 SOFTWARE LICENCES,TECHNOLOGY AND CIO,BYTES SOFTWARE SERVICES LTD,454929,1749.3,823818226
BEIS,Met Office,2021-04-20,08 SOFTWARE LICENCES,TECHNOLOGY AND CIO,BYTES SOFTWARE SERVICES LTD,454929,3235.32,823818226
BEIS,Met Office,2021-04-20,08 SOFTWARE LICENCES,TECHNOLOGY AND CIO,BYTES SOFTWARE SERVICES LTD,454929,2985.9,823818226
BEIS,Met Office,2021-04-20,08 SOFTWARE LICENCES,TECHNOLOGY AND CIO,BYTES SOFTWARE SERVICES LTD,455028,401.1,823818226
BEIS,Met Office,2021-04-20,08 SOFTWARE LICENCES,TECHNOLOGY AND CIO,BYTES SOFTWARE SERVICES LTD,455028,1249.5,823818226
BEIS,Met Office,2021-04-20,08 SOFTWARE LICENCES,TECHNOLOGY AND CIO,BYTES SOFTWARE SERVICES LTD,455028,1617.66,823818226
BEIS,Met Office,2021-04-20,08 SOFTWARE LICENCES,TECHNOLOGY AND CIO,BYTES SOFTWARE SERVICES LTD,455028,186682.7,232615194
BEIS,Met Office,2021-04-20,11 SERVICES,MARKETS,Cgi It Uk Limited,454900,7110,978187168
BEIS,Met Office,2021-04-20,11 SERVICES,TECHNOLOGY AND CIO,CLOUDREACH EUROPE LIMITED,453181,2165.2,978187168
BEIS,Met Office,2021-04-20,11 SERVICES,TECHNOLOGY AND CIO,CLOUDREACH EUROPE LIMITED,453329,6777.1,978187168
BEIS,Met Office,2021-04-20,11 SERVICES,TECHNOLOGY AND CIO,CLOUDREACH EUROPE LIMITED,453577,4000,978187168
BEIS,Met Office,2021-04-20,11 SERVICES,TECHNOLOGY AND CIO,CLOUDREACH EUROPE LIMITED,453578,6472.21,978187168
BEIS,Met Office,2021-04-20,11 SERVICES,TECHNOLOGY AND CIO,CLOUDREACH EUROPE LIMITED,454344,17547.23,577704800
BEIS,Met Office,2021-04-20,06 ACCOMMODATION,CHIEF FINANCIAL OFFICER,CORONA ENERGY LTD,454932,2400,167656860
BEIS,Met Office,2021-04-20,11 SERVICES,MARKETS,DRIVE CREATIVE STUDIO LTD,453108,598.8,257205566
BEIS,Met Office,2021-04-20,06 ACCOMMODATION,CHIEF FINANCIAL OFFICER,Eden District Council,455010,95911.29,523041202
BEIS,Met Office,2021-04-20,06 ACCOMMODATION,CHIEF FINANCIAL OFFICER,EDF ENERGY CUSTOMERS PLC,455054,108762.73,523041202
BEIS,Met Office,2021-04-20,06 ACCOMMODATION,CHIEF FINANCIAL OFFICER,EDF ENERGY CUSTOMERS PLC,455055,4515,787430791
BEIS,Met Office,2021-04-20,SOFTWARE LICENCES,MARKETS,Esri (Uk) Ltd,454522,567.88,GB798572653
BEIS,Met Office,2021-04-20,11 SERVICES,CHIEF FINANCIAL OFFICER,EXPONENTIAL-E,454888,980.86,GB798572653
BEIS,Met Office,2021-04-20,11 SERVICES,CHIEF FINANCIAL OFFICER,EXPONENTIAL-E,454888,1080,583540529
BEIS,Met Office,2021-04-20,04 CONTRACTORS,TECHNOLOGY AND CIO,FDM GROUP LIMITED,455070,1080,583540529
BEIS,Met Office,2021-04-20,04 CONTRACTORS,TECHNOLOGY AND CIO,FDM GROUP LIMITED,455072,810,583540529
BEIS,Met Office,2021-04-20,04 CONTRACTORS,TECHNOLOGY AND CIO,FDM GROUP LIMITED,455073,305.66,129495383
BEIS,Met Office,2021-04-20,06 ACCOMMODATION,CHIEF FINANCIAL OFFICER,FOX GROUNDS MAINTENANCE & LANDSCAPING LTD,454447,2550,166398173
BEIS,Met Office,2021-04-20,11 SERVICES,CHIEF FINANCIAL OFFICER,FSI (FM SOLUTIONS) LTD,455027,-3255.24,823820344
BEIS,Met Office,2021-04-20,11 SERVICES,CHIEF FINANCIAL OFFICER,GAMMA TELECOM LTD,454648,3255.24,823820344
BEIS,Met Office,2021-04-20,11 SERVICES,PROGRAMMES,GAMMA TELECOM LTD,454679,98.23,823820344
BEIS,Met Office,2021-04-20,11 SERVICES,CHIEF FINANCIAL OFFICER,GAMMA TELECOM LTD,454930,35584.06,823820344
BEIS,Met Office,2021-04-20,11 SERVICES,CHIEF FINANCIAL OFFICER,GAMMA TELECOM LTD,454930,3000,539716218
BEIS,Met Office,2021-04-20,11 SERVICES,CHIEF FINANCIAL OFFICER,GB GROUP PLC,455071,634.67,773695871
BEIS,Met Office,2021-04-20,04 CONTRACTORS,PEOPLE,HAYS SPECIALIST RECRUITMENT LTD,454981,366.15,773695871
BEIS,Met Office,2021-04-20,04 CONTRACTORS,PEOPLE,HAYS SPECIALIST RECRUITMENT LTD,454996,266.86,773695871
BEIS,Met Office,2021-04-20,04 CONTRACTORS,PEOPLE,HAYS SPECIALIST RECRUITMENT LTD,454997,450,616099432
BEIS,Met Office,2021-04-20,06 ACCOMMODATION,CHIEF FINANCIAL OFFICER,Haztech Consultants Ltd,455012,450,616099432
BEIS,Met Office,2021-04-20,06 ACCOMMODATION,CHIEF FINANCIAL OFFICER,Haztech Consultants Ltd,455012,450,616099432
BEIS,Met Office,2021-04-20,06 ACCOMMODATION,CHIEF FINANCIAL OFFICER,Haztech Consultants Ltd,455012,450,616099432
BEIS,Met Office,2021-04-20,06 ACCOMMODATION,CHIEF FINANCIAL OFFICER,Haztech Consultants Ltd,455012,450,616099432
BEIS,Met Office,2021-04-20,06 ACCOMMODATION,CHIEF FINANCIAL OFFICER,Haztech Consultants Ltd,455012,450,616099432
BEIS,Met Office,2021-04-20,06 ACCOMMODATION,CHIEF FINANCIAL OFFICER,Haztech Consultants Ltd,455012,600,616099432
BEIS,Met Office,2021-04-20,06 ACCOMMODATION,CHIEF FINANCIAL OFFICER,Haztech Consultants Ltd,455012,1470,663785203
BEIS,Met Office,2021-04-20,06 ACCOMMODATION,CHIEF FINANCIAL OFFICER,Highland Council,455008,1470,663785203
BEIS,Met Office,2021-04-20,06 ACCOMMODATION,CHIEF FINANCIAL OFFICER,Highland Council,455009,1470,663785203
BEIS,Met Office,2021-04-20,06 ACCOMMODATION,CHIEF FINANCIAL OFFICER,Highland Council,455013,35831.86,GB123371543
BEIS,Met Office,2021-04-20,11 SERVICES,PROGRAMMES,HOGAN LOVELLS INTERNATIONAL LLP,454895,49500,GB123371543
BEIS,Met Office,2021-04-20,11 SERVICES,PROGRAMMES,HOGAN LOVELLS INTERNATIONAL LLP,454895,40901.66,GB123371543
BEIS,Met Office,2021-04-20,11 SERVICES,PROGRAMMES,HOGAN LOVELLS INTERNATIONAL LLP,454895,27541.99,GB123371543
BEIS,Met Office,2021-04-20,11 SERVICES,PROGRAMMES,HOGAN LOVELLS INTERNATIONAL LLP,454895,20601.84,GB123371543
BEIS,Met Office,2021-04-20,11 SERVICES,PROGRAMMES,HOGAN LOVELLS INTERNATIONAL LLP,454895,11000,GB123371543
BEIS,Met Office,2021-04-20,11 SERVICES,PROGRAMMES,HOGAN LOVELLS INTERNATIONAL LLP,454895,18510.97,GB123371543
BEIS,Met Office,2021-04-20,11 SERVICES,PROGRAMMES,HOGAN LOVELLS INTERNATIONAL LLP,454895,12325.84,GB123371543
BEIS,Met Office,2021-04-20,11 SERVICES,PROGRAMMES,HOGAN LOVELLS INTERNATIONAL LLP,454899,16529.96,GB123371543
BEIS,Met Office,2021-04-20,11 SERVICES,PROGRAMMES,HOGAN LOVELLS INTERNATIONAL LLP,454899,79058.16,GB123371543
BEIS,Met Office,2021-04-20,11 SERVICES,PROGRAMMES,HOGAN LOVELLS INTERNATIONAL LLP,454899,32639.03,GB123371543
BEIS,Met Office,2021-04-20,11 SERVICES,PROGRAMMES,HOGAN LOVELLS INTERNATIONAL LLP,454899,76500,746075129
BEIS,Met Office,2021-04-20,08 SOFTWARE LICENCES,TECHNOLOGY AND CIO,INSIGHT DIRECT (UK) LTD,454887,4931.94,832 7071 39
BEIS,Met Office,2021-04-20,11 SERVICES,CHIEF FINANCIAL OFFICER,INTEROUTE COMMUNICATIONS LIMITED,455047,1118.47,NOTVATREG
BEIS,Met Office,2021-04-20,11 SERVICES,CHIEF FINANCIAL OFFICER,JERSEY TELECOM,455015,165.14,NOTVATREG
BEIS,Met Office,2021-04-20,11 SERVICES,CHIEF FINANCIAL OFFICER,JERSEY TELECOM,455015,274.2,130 1297 14
BEIS,Met Office,2021-04-20,04 CONTRACTORS,CHIEF FINANCIAL OFFICER,JOBSEEKERS RECRUITMENT SERVICES LTD,454889,538.08,130 1297 14
BEIS,Met Office,2021-04-20,04 CONTRACTORS,MARKETS,JOBSEEKERS RECRUITMENT SERVICES LTD,454890,493.56,130 1297 14
BEIS,Met Office,2021-04-20,04 CONTRACTORS,CHIEF FINANCIAL OFFICER,JOBSEEKERS RECRUITMENT SERVICES LTD,454891,548.4,130 1297 14
BEIS,Met Office,2021-04-20,04 CONTRACTORS,PEOPLE,JOBSEEKERS RECRUITMENT SERVICES LTD,454906,538.08,130 1297 14
BEIS,Met Office,2021-04-20,04 CONTRACTORS,OFFICE OF THE CEO,JOBSEEKERS RECRUITMENT SERVICES LTD,454908,548.4,130 1297 14
BEIS,Met Office,2021-04-20,04 CONTRACTORS,PEOPLE,JOBSEEKERS RECRUITMENT SERVICES LTD,454910,547.2,130 1297 14
BEIS,Met Office,2021-04-20,04 CONTRACTORS,MARKETS,JOBSEEKERS RECRUITMENT SERVICES LTD,454914,64.51,927365404
BEIS,Met Office,2021-04-20,06 ACCOMMODATION,SERVICES,LHR BUSINESS SUPPORT CENTRE LTD,455060,4990,-
BEIS,Met Office,2021-04-20,06 ACCOMMODATION,CHIEF FINANCIAL OFFICER,Mid Sussex District Council,455003,2925,663755506
BEIS,Met Office,2021-04-20,06 ACCOMMODATION,CHIEF FINANCIAL OFFICER,MORAY COUNCIL,455049,80000,207523388
BEIS,Met Office,2021-04-20,11 SERVICES,PROGRAMMES,NPL Management Ltd,455021,48000,207523388
BEIS,Met Office,2021-04-20,11 SERVICES,PROGRAMMES,NPL Management Ltd,455023,50.99,238034379
BEIS,Met Office,2021-04-20,06 ACCOMMODATION,CHIEF FINANCIAL OFFICER,OCS Group UK Ltd,454901,802.28,583565114
BEIS,Met Office,2021-04-20,13 MISCELLANEOUS,CHIEF FINANCIAL OFFICER,POSTURITE (UK) LTD,450959,462.16,583565114
BEIS,Met Office,2021-04-20,13 MISCELLANEOUS,CHIEF FINANCIAL OFFICER,POSTURITE (UK) LTD,452429,12.37,583565114
BEIS,Met Office,2021-04-20,13 MISCELLANEOUS,CHIEF FINANCIAL OFFICER,POSTURITE (UK) LTD,452456,366,583565114
BEIS,Met Office,2021-04-20,13 MISCELLANEOUS,CHIEF FINANCIAL OFFICER,POSTURITE (UK) LTD,452609,533.73,583565114
BEIS,Met Office,2021-04-20,13 MISCELLANEOUS,CHIEF FINANCIAL OFFICER,POSTURITE (UK) LTD,453631,50,583565114
BEIS,Met Office,2021-04-20,13 MISCELLANEOUS,CHIEF FINANCIAL OFFICER,POSTURITE (UK) LTD,454140,680.14,583565114
BEIS,Met Office,2021-04-20,13 MISCELLANEOUS,CHIEF FINANCIAL OFFICER,POSTURITE (UK) LTD,454251,21.67,583565114
BEIS,Met Office,2021-04-20,13 MISCELLANEOUS,CHIEF FINANCIAL OFFICER,POSTURITE (UK) LTD,454341,88.62,583565114
BEIS,Met Office,2021-04-20,13 MISCELLANEOUS,CHIEF FINANCIAL OFFICER,POSTURITE (UK) LTD,454528,100,583565114
BEIS,Met Office,2021-04-20,13 MISCELLANEOUS,CHIEF FINANCIAL OFFICER,POSTURITE (UK) LTD,454920,115.2,617518142
BEIS,Met Office,2021-04-20,06 ACCOMMODATION,CHIEF FINANCIAL OFFICER,POWER NI ENERGY LTD,455007,9650,-
BEIS,Met Office,2021-04-20,08 SOFTWARE LICENCES,TECHNOLOGY AND CIO,PRESENTATION CARTOGRAPHY LTD,454625,13370,GB893169286
BEIS,Met Office,2021-04-20,08 SOFTWARE LICENCES,CHIEF FINANCIAL OFFICER,PROACTIS LIMITED,454913,90,-
BEIS,Met Office,2021-04-20,11 SERVICES,PROGRAMMES,RIVER TRAINING AND HR,454927,79418,287461957
BEIS,Met Office,2021-04-20,11 SERVICES,PROGRAMMES,SCIENCE & TECHNOLOGY FACILITIES COUNCIL,455044,725.48,430028404
BEIS,Met Office,2021-04-20,06 ACCOMMODATION,CHIEF FINANCIAL OFFICER,SHETLAND CLEANING SERVICES,455002,2520,752 1253 57
BEIS,Met Office,2021-04-20,11 SERVICES,SERVICES,SOFTWIRE TECHNOLOGY LIMITED,454955,1214.99,NOVATREG
BEIS,Met Office,2021-04-20,11 SERVICES,CHIEF FINANCIAL OFFICER,SURE SOUTH ATLANTIC LTD,455052,67786,125506730
BEIS,Met Office,2021-04-20,11 SERVICES,PROGRAMMES,University Of Oxford,453654,25000,125506730
BEIS,Met Office,2021-04-20,11 SERVICES,SCIENCE,University Of Oxford,454915,-67786,125506730
BEIS,Met Office,2021-04-20,11 SERVICES,PROGRAMMES,University Of Oxford,455042,61048,125506730
BEIS,Met Office,2021-04-20,11 SERVICES,PROGRAMMES,University Of Oxford,455043,19292,100103412
BEIS,Met Office,2021-04-20,11 SERVICES,MARKETS,UNIVERSITY OF WORCESTER,454791,14261.06,876328977
BEIS,Met Office,2021-04-20,04 CONTRACTORS,TECHNOLOGY AND CIO,WA CONSULTANTS LTD,454640,-648.23,876328977
BEIS,Met Office,2021-04-20,04 CONTRACTORS,TECHNOLOGY AND CIO,WA CONSULTANTS LTD,454893,2600,723281453
BEIS,Met Office,2021-04-20,06 ACCOMMODATION,CHIEF FINANCIAL OFFICER,WINGFIELD DIGBY SETTLED ESTATE,455041,1463,766127320
BEIS,Met Office,2021-04-20,11 SERVICES,PEOPLE,XEXEC LTD,455030,3551.26,N/A
BEIS,Met Office,2021-04-21,11 SERVICES,MARKETS,"BASILIO SOZINHO CUBULA SERVI�OS, E.I.",10196,5672.83,107995930
BEIS,Met Office,2021-04-21,11 SERVICES,SERVICES,BENTLEY WALKER LTD,10172,-487.44,107995930
BEIS,Met Office,2021-04-21,11 SERVICES,SERVICES,BENTLEY WALKER LTD,9920,520,-
BEIS,Met Office,2021-04-21,06 ACCOMMODATION,CHIEF FINANCIAL OFFICER,JAMES & MARCIA BENJAMIN,454728,3500,-
BEIS,Met Office,2021-04-21,11 SERVICES,MARKETS,KENYA RED CROSS SOCIETY,454937,97996.33,N/A
BEIS,Met Office,2021-04-21,TRADE CREDITORS,OTHER,NATWEST COMMERCIAL CARDS DIVISION,455083,8044.55,N/A
BEIS,Met Office,2021-04-21,07 EQUIPMENT,CHIEF FINANCIAL OFFICER,NATWEST COMMERCIAL CARDS DIVISION,455084,188703.78,GB648191516
BEIS,Met Office,2021-04-21,FIXTURE & FITTINGS,CHIEF FINANCIAL OFFICER,NMCN PLC,455079,82.19,1506601-0
BEIS,Met Office,2021-04-21,STOCK,SERVICES,STELLA NAVES OY LTD,22564,21.7,-
BEIS,Met Office,2021-04-21,12 INTERNATIONAL,MARKETS,TOTEX CORPORATION,454066,1070,-
BEIS,Met Office,2021-04-21,12 INTERNATIONAL,MARKETS,TOTEX CORPORATION,454066,2670,-
BEIS,Met Office,2021-04-21,12 INTERNATIONAL,MARKETS,TOTEX CORPORATION,454066,16312.43,649 503 520
BEIS,Met Office,2021-04-27,11 SERVICES,PEOPLE,EDENRED - CHILDCARE VOUCHERS,455329,-699.93,649 503 520
BEIS,Met Office,2021-04-27,11 SERVICES,PEOPLE,EDENRED - CHILDCARE VOUCHERS,455330,980,649 503 520
BEIS,Met Office,2021-04-27,11 SERVICES,PEOPLE,EDENRED - CHILDCARE VOUCHERS,455331,208,649 503 520
BEIS,Met Office,2021-04-27,11 SERVICES,PEOPLE,EDENRED - CHILDCARE VOUCHERS,455332,10.32,N/A
BEIS,Met Office,2021-04-28,11 SERVICES,TECHNOLOGY AND CIO,AMAZON WEB SERVICES INC.,10199,11.51,N/A
BEIS,Met Office,2021-04-28,11 SERVICES,TECHNOLOGY AND CIO,AMAZON WEB SERVICES INC.,10200,22.88,N/A
BEIS,Met Office,2021-04-28,11 SERVICES,TECHNOLOGY AND CIO,AMAZON WEB SERVICES INC.,10201,23.8,N/A
BEIS,Met Office,2021-04-28,11 SERVICES,TECHNOLOGY AND CIO,AMAZON WEB SERVICES INC.,10202,64.33,N/A
BEIS,Met Office,2021-04-28,11 SERVICES,TECHNOLOGY AND CIO,AMAZON WEB SERVICES INC.,10203,9.38,N/A
BEIS,Met Office,2021-04-28,11 SERVICES,TECHNOLOGY AND CIO,AMAZON WEB SERVICES INC.,10204,104.63,N/A
BEIS,Met Office,2021-04-28,11 SERVICES,TECHNOLOGY AND CIO,AMAZON WEB SERVICES INC.,10205,0.01,N/A
BEIS,Met Office,2021-04-28,11 SERVICES,TECHNOLOGY AND CIO,AMAZON WEB SERVICES INC.,10206,689.77,N/A
BEIS,Met Office,2021-04-28,11 SERVICES,TECHNOLOGY AND CIO,AMAZON WEB SERVICES INC.,10207,0.03,N/A
BEIS,Met Office,2021-04-28,11 SERVICES,TECHNOLOGY AND CIO,AMAZON WEB SERVICES INC.,10208,14.05,N/A
BEIS,Met Office,2021-04-28,11 SERVICES,TECHNOLOGY AND CIO,AMAZON WEB SERVICES INC.,10209,2.23,N/A
BEIS,Met Office,2021-04-28,11 SERVICES,TECHNOLOGY AND CIO,AMAZON WEB SERVICES INC.,10210,119.13,N/A
BEIS,Met Office,2021-04-28,11 SERVICES,TECHNOLOGY AND CIO,AMAZON WEB SERVICES INC.,10211,56.15,N/A
BEIS,Met Office,2021-04-28,11 SERVICES,TECHNOLOGY AND CIO,AMAZON WEB SERVICES INC.,10212,0.98,N/A
BEIS,Met Office,2021-04-28,11 SERVICES,TECHNOLOGY AND CIO,AMAZON WEB SERVICES INC.,10213,0.69,N/A
BEIS,Met Office,2021-04-28,11 SERVICES,TECHNOLOGY AND CIO,AMAZON WEB SERVICES INC.,10214,2.92,N/A
BEIS,Met Office,2021-04-28,11 SERVICES,TECHNOLOGY AND CIO,AMAZON WEB SERVICES INC.,10215,32.12,N/A
BEIS,Met Office,2021-04-28,11 SERVICES,TECHNOLOGY AND CIO,AMAZON WEB SERVICES INC.,10216,95.55,N/A
BEIS,Met Office,2021-04-28,11 SERVICES,TECHNOLOGY AND CIO,AMAZON WEB SERVICES INC.,10217,34.58,N/A
BEIS,Met Office,2021-04-28,11 SERVICES,TECHNOLOGY AND CIO,AMAZON WEB SERVICES INC.,10218,0.4,N/A
BEIS,Met Office,2021-04-28,11 SERVICES,TECHNOLOGY AND CIO,AMAZON WEB SERVICES INC.,10219,1.18,N/A
BEIS,Met Office,2021-04-28,11 SERVICES,TECHNOLOGY AND CIO,AMAZON WEB SERVICES INC.,10220,0.77,N/A
BEIS,Met Office,2021-04-28,11 SERVICES,TECHNOLOGY AND CIO,AMAZON WEB SERVICES INC.,10221,15.76,N/A
BEIS,Met Office,2021-04-28,11 SERVICES,TECHNOLOGY AND CIO,AMAZON WEB SERVICES INC.,10222,4.93,N/A
BEIS,Met Office,2021-04-28,11 SERVICES,TECHNOLOGY AND CIO,AMAZON WEB SERVICES INC.,10223,85.54,10156145J
BEIS,Met Office,2021-04-28,13 MISCELLANEOUS,CHIEF FINANCIAL OFFICER,DEMSTAR BUSINESS SOLUTIONS LTD,22491,987.92,NOTVATREG
BEIS,Met Office,2021-04-28,11 SERVICES,MARKETS,ECMWF,22405,561.87,NOTVATREG
BEIS,Met Office,2021-04-28,11 SERVICES,MARKETS,ECMWF,22406,246.15,NOTVATREG
BEIS,Met Office,2021-04-28,11 SERVICES,MARKETS,ECMWF,22407,250.99,NOTVATREG
BEIS,Met Office,2021-04-28,11 SERVICES,MARKETS,ECMWF,22408,224.83,NOTVATREG
BEIS,Met Office,2021-04-28,11 SERVICES,MARKETS,ECMWF,22409,152.24,NOTVATREG
BEIS,Met Office,2021-04-28,11 SERVICES,MARKETS,ECMWF,22410,152.7,NOTVATREG
BEIS,Met Office,2021-04-28,11 SERVICES,MARKETS,ECMWF,22411,427.57,NOTVATREG
BEIS,Met Office,2021-04-28,11 SERVICES,MARKETS,ECMWF,22412,6413.55,NOTVATREG
BEIS,Met Office,2021-04-28,11 SERVICES,MARKETS,ECMWF,22413,10261.67,NOTVATREG
BEIS,Met Office,2021-04-28,11 SERVICES,MARKETS,ECMWF,22414,1710.28,NOTVATREG
BEIS,Met Office,2021-04-28,11 SERVICES,MARKETS,ECMWF,22415,4275.7,NOTVATREG
BEIS,Met Office,2021-04-28,11 SERVICES,MARKETS,ECMWF,22416,12827.09,NOTVATREG
BEIS,Met Office,2021-04-28,11 SERVICES,MARKETS,ECMWF,22417,2280.38,NOTVATREG
BEIS,Met Office,2021-04-28,11 SERVICES,MARKETS,ECMWF,22418,2137.85,NOTVATREG
BEIS,Met Office,2021-04-28,11 SERVICES,MARKETS,ECMWF,22419,1710.28,NOTVATREG
BEIS,Met Office,2021-04-28,11 SERVICES,MARKETS,ECMWF,22421,3848.13,NOTVATREG
BEIS,Met Office,2021-04-28,11 SERVICES,MARKETS,ECMWF,22422,2992.99,NOTVATREG
BEIS,Met Office,2021-04-28,11 SERVICES,MARKETS,ECMWF,22424,133.65,NOTVATREG
BEIS,Met Office,2021-04-28,11 SERVICES,MARKETS,ECMWF,22425,250.31,NOTVATREG
BEIS,Met Office,2021-04-28,11 SERVICES,MARKETS,ECMWF,22426,1032.91,NOTVATREG
BEIS,Met Office,2021-04-28,11 SERVICES,MARKETS,ECMWF,22427,1015.48,NOTVATREG
BEIS,Met Office,2021-04-28,11 SERVICES,MARKETS,ECMWF,22428,1015.48,NOTVATREG
BEIS,Met Office,2021-04-28,11 SERVICES,MARKETS,ECMWF,22429,1075.29,NOTVATREG
BEIS,Met Office,2021-04-28,11 SERVICES,MARKETS,ECMWF,22430,730.38,NOTVATREG
BEIS,Met Office,2021-04-28,11 SERVICES,MARKETS,ECMWF,22431,385.38,NOTVATREG
BEIS,Met Office,2021-04-28,11 SERVICES,MARKETS,ECMWF,22432,4350.56,NOTVATREG
BEIS,Met Office,2021-04-28,11 SERVICES,MARKETS,ECMWF,22433,3883.42,NOTVATREG
BEIS,Met Office,2021-04-28,11 SERVICES,MARKETS,ECMWF,22434,3774.99,NOTVATREG
BEIS,Met Office,2021-04-28,11 SERVICES,MARKETS,ECMWF,22435,3676.13,NOTVATREG
BEIS,Met Office,2021-04-28,11 SERVICES,MARKETS,ECMWF,22436,3347.19,NOTVATREG
BEIS,Met Office,2021-04-28,11 SERVICES,MARKETS,ECMWF,22437,2180.08,NOTVATREG
BEIS,Met Office,2021-04-28,11 SERVICES,MARKETS,ECMWF,22438,1760.91,NOTVATREG
BEIS,Met Office,2021-04-28,11 SERVICES,MARKETS,ECMWF,22439,1581.97,NOTVATREG
BEIS,Met Office,2021-04-28,11 SERVICES,MARKETS,ECMWF,22441,1274.66,NOTVATREG
BEIS,Met Office,2021-04-28,11 SERVICES,MARKETS,ECMWF,22442,1100.18,NOTVATREG
BEIS,Met Office,2021-04-28,11 SERVICES,MARKETS,ECMWF,22444,5948.52,NOTVATREG
BEIS,Met Office,2021-04-28,11 SERVICES,MARKETS,ECMWF,22445,4667.45,NOTVATREG
BEIS,Met Office,2021-04-28,11 SERVICES,MARKETS,ECMWF,22446,3008.87,NOTVATREG
BEIS,Met Office,2021-04-28,11 SERVICES,MARKETS,ECMWF,22447,2418.54,NOTVATREG
BEIS,Met Office,2021-04-28,11 SERVICES,MARKETS,ECMWF,22449,30058.15,NOTVATREG
BEIS,Met Office,2021-04-28,11 SERVICES,MARKETS,ECMWF,22450,28433.38,NOTVATREG
BEIS,Met Office,2021-04-28,11 SERVICES,MARKETS,ECMWF,22451,30058.15,NOTVATREG
BEIS,Met Office,2021-04-28,11 SERVICES,MARKETS,ECMWF,22452,28433.38,NOTVATREG
BEIS,Met Office,2021-04-28,11 SERVICES,MARKETS,ECMWF,22453,19704.78,NOTVATREG
BEIS,Met Office,2021-04-28,11 SERVICES,MARKETS,ECMWF,22454,19704.78,NOTVATREG
BEIS,Met Office,2021-04-28,11 SERVICES,MARKETS,ECMWF,22455,18639.66,NOTVATREG
BEIS,Met Office,2021-04-28,11 SERVICES,MARKETS,ECMWF,22456,2644.07,NOTVATREG
BEIS,Met Office,2021-04-28,11 SERVICES,MARKETS,ECMWF,22457,10452.77,NOTVATREG
BEIS,Met Office,2021-04-28,11 SERVICES,MARKETS,ECMWF,22458,10353.37,NOTVATREG
BEIS,Met Office,2021-04-28,11 SERVICES,MARKETS,ECMWF,22459,10353.37,NOTVATREG
BEIS,Met Office,2021-04-28,11 SERVICES,MARKETS,ECMWF,22460,9793.72,NOTVATREG
BEIS,Met Office,2021-04-28,11 SERVICES,MARKETS,ECMWF,22461,29815.86,NOTVATREG
BEIS,Met Office,2021-04-28,11 SERVICES,MARKETS,ECMWF,22462,30058.15,NOTVATREG
BEIS,Met Office,2021-04-28,11 SERVICES,MARKETS,ECMWF,22463,30058.15,NOTVATREG
BEIS,Met Office,2021-04-28,11 SERVICES,MARKETS,ECMWF,22464,30058.15,NOTVATREG
BEIS,Met Office,2021-04-28,11 SERVICES,MARKETS,ECMWF,22465,30058.15,NOTVATREG
BEIS,Met Office,2021-04-28,11 SERVICES,MARKETS,ECMWF,22466,30058.15,NOTVATREG
BEIS,Met Office,2021-04-28,11 SERVICES,MARKETS,ECMWF,22467,30058.15,NOTVATREG
BEIS,Met Office,2021-04-28,11 SERVICES,MARKETS,ECMWF,22468,30058.15,NOTVATREG
BEIS,Met Office,2021-04-28,11 SERVICES,MARKETS,ECMWF,22469,30058.15,NOTVATREG
BEIS,Met Office,2021-04-28,11 SERVICES,MARKETS,ECMWF,22470,52.74,4736919B
BEIS,Met Office,2021-04-28,11 SERVICES,CHIEF FINANCIAL OFFICER,EIR,22575,25654.18,723/2009
BEIS,Met Office,2021-04-28,12 INTERNATIONAL,SERVICES,EURO-ARGO ERIC,22392,34750.52,99733
BEIS,Met Office,2021-04-28,12 INTERNATIONAL,SERVICES,Icelandic Meteorological Office,22576,11544.38,-
BEIS,Met Office,2021-04-28,11 SERVICES,PEOPLE,NIGHT MOUNTAIN LTD T/A UX TRAINING.COM,22420,5816.26,EL999641589
BEIS,Met Office,2021-04-28,10 EQUIPMENT MAINTENANCE,SERVICES,RAYMETRICS S.A. (GREEK ACCOUNT),22477,42388.4,112591322
BEIS,Met Office,2021-04-28,11 SERVICES,PROGRAMMES,REDACTED PERSONAL DATA,22397,59861.76,-
BEIS,Met Office,2021-04-28,11 SERVICES,MARKETS,World Food Programme,10229,12000,576118722
